lending/lending_fUSD_20240207
["ID","MTS","AMOUNT","RATE_DAILY","PERIOD"]
[313398187,1707300640042,-1159.81592435,0.00023,2]
[313398188,1707300640054,-354.33584849,0.00023,2]
[313398189,1707300640085,-1245.70852761,0.00023,2]
[313398190,1707300640097,-420.0,0.00023,2]
[313398191,1707300640110,-430.72640198,0.00023,2]
[313398192,1707300640121,-1007.43044093,0.00023,2]
[313398193,1707300640133,-7463.19073058,0.00023,2]
[313398194,1707300640145,-1638.31918595,0.00023,2]
[313398195,1707300640832,-48698.63507877,0.00023,2]
[313398196,1707300640847,-1820.23981315,0.00023,2]
[313398197,1707300640859,-1572.90815554,0.00023,2]
[313398198,1707300640871,-617.0,0.00023,2]
[313398219,1707300642432,-302.66743697,0.00023,2]
[313398221,1707300642444,-2291.63766689,0.00023,2]
[313398223,1707300642456,-9660.22759705,0.00023,2]
[313398228,1707300642541,-379.85178613,0.00023,2]
[313398229,1707300642553,-547068.52623717,0.00023,2]
[313398230,1707300642562,-245.7126014,0.000239,2]
[313398231,1707300642571,-182.14220553,0.00024,2]
[313398233,1707300642580,-158.64936973,0.00024857,2]
[313398235,1707300642589,-245.71260139,0.00025073,2]
[313398237,1707300642598,-310.85,0.00025228,2]
[313398238,1707300642607,-499.99,0.00025795,2]
[313398241,1707300642617,-245.71260139,0.00026245,2]
[313398242,1707300642626,-1027.13,0.00026268,2]
[313398245,1707300642635,-375.37,0.00026466,2]
[313398247,1707300642644,-706.87,0.00026582,2]
[313398249,1707300642654,-840.0,0.00026768,2]
[313398251,1707300642663,-158.64936973,0.00026819,2]
[313398253,1707300642672,-250.0,0.00026982,2]
[313398254,1707300642682,-150.0,0.00027165,2]
[313398256,1707300642691,-245.71260139,0.00027418,2]
[313398259,1707300642700,-310.85,0.00027492,2]
[313398260,1707300642709,-169.97,0.00027657,2]
[313398262,1707300642718,-151.14180747,0.0002768,2]
[313398265,1707300642731,-167.93,0.00027735,2]
[313398267,1707300642741,-160.0,0.00027913,2]
[313398269,1707300642750,-706.87,0.00028225,2]
[313398272,1707300642760,-192.12989157,0.000283,2]
[313398275,1707300642770,-245.71260139,0.0002859,2]
[313398277,1707300642780,-727.59032262,0.000286,2]
[313398279,1707300642789,-451.31137333,0.000286,2]
[313398281,1707300642798,-411.40624219,0.000286,2]
[313398284,1707300642807,-512.95262737,0.000286,2]
[313398286,1707300642817,-646.81113597,0.000286,2]
[313398289,1707300642826,-871684.18722521,0.0002868,2]
[313398291,1707300642839,-546508.75058573,0.0002868,2]
[313398293,1707300642850,-29151.3656423,0.0002868,2]
[313398295,1707300642862,-22960.47477264,0.0002868,2]
[313398298,1707300642871,-451.31137331,0.0002869,2]
[313398300,1707300642880,-411.40624217,0.0002869,2]
[313398303,1707300642889,-646.81113596,0.0002869,2]
[313398306,1707300642899,-8121.767094,0.000287,2]
[313398308,1707300642909,-210.0,0.0002872,2]
[313398310,1707300642919,-5800.19529632,0.0002878,2]
[313398313,1707300642928,-158.64936973,0.0002878,2]
[313398315,1707300642938,-1000.0,0.0002878,2]
[313398318,1707300642948,-5000.0,0.0002878,2]
[313398321,1707300642957,-182.14220553,0.0002878,4]
[313398323,1707300642966,-451.31137331,0.0002878,2]
[313398326,1707300642975,-411.40624217,0.0002878,2]
[313398329,1707300642984,-646.81113596,0.0002878,2]
[313398331,1707300642993,-14024.50750955,0.000288,3]
[313398334,1707300643006,-37061.2,0.000288,3]
[313398337,1707300643018,-25372.17221766,0.000288,3]
[313398342,1707300643040,-692.02618602,0.000288,3]
[313398387,1707300645572,-1000.0,0.000288,3]
[313398394,1707300645626,-300.0,0.000288,3]
[313398524,1707301831614,-769.79012004,0.00024684,2]
[313398525,1707301831624,-525.99621139,0.00024684,2]
[313398526,1707301831633,-523.5973687,0.00024684,2]
[313398527,1707301831642,-234.1925192,0.00024684,2]
[313398528,1707301831651,-339.45977327,0.00024684,2]
[313398529,1707301831665,-373.90204875,0.00024684,2]
[313398530,1707301831680,-319.24149127,0.00024684,2]
[313398531,1707301831692,-357.46371413,0.00024684,2]
[313398532,1707301831705,-358.52677477,0.00024684,2]
[313398533,1707301831718,-399.44198976,0.00024684,2]
[313398534,1707301831728,-365.59799663,0.00024685,2]
[313398535,1707301831738,-4655.46562346,0.00024685,2]
[313398536,1707301831751,-290.17796469,0.00024686,2]
[313398537,1707301831761,-155.0,0.0002469,2]
[313398538,1707301831772,-129894.72494817,0.00024691,2]
[313398539,1707301831781,-101865.42896378,0.00024692,2]
[313398540,1707301831793,-3667.306,0.00024692,2]
[313398541,1707301831812,-1916.98708128,0.00024692,2]
[313398542,1707301831824,-256956.42895357,0.00024692,2]
[313398543,1707301831834,-389.7,0.00024708,2]
[313398544,1707301831843,-2769.63740928,0.00024995,2]
[313398545,1707301831852,-2788.43482937,0.00024996,2]
[313398546,1707301831861,-6074.82,0.00024996,2]
[313398547,1707301831870,-1683.23708291,0.00024998,2]
[313398548,1707301831879,-350.0,0.00025,3]
[313398549,1707301831888,-17740.18565148,0.00025,4]
[313398551,1707301831900,-951.23306626,0.00025,4]
[313398552,1707301831908,-155.93305506,0.0002592,2]
[313398554,1707301831918,-499.99,0.0002592,2]
[313398556,1707301831927,-178.84,0.00026303,2]
[313398558,1707301831936,-163.98550413,0.00026476,2]
[313398560,1707301831945,-637.02,0.0002653,2]
[313398562,1707301831954,-150.0,0.00026567,2]
[313398564,1707301831963,-328.0,0.00026567,2]
[313398566,1707301831972,-250.0,0.00026576,2]
[313398568,1707301831981,-155.69856495,0.00026616,2]
[313398570,1707301831991,-252.08382138,0.00026616,2]
[313398572,1707301832000,-864.74150331,0.00026617,2]
[313398574,1707301832010,-13116.12,0.00026619,2]
[313398576,1707301832019,-167.93,0.00026635,2]
[313398578,1707301832028,-250.0,0.00026641,2]
[313398580,1707301832037,-389.7,0.00026972,2]
[313398582,1707301832047,-400.0,0.00027,3]
[313398583,1707301832056,-417.97881571,0.00027,2]
[313398584,1707301832066,-500.0,0.00027,7]
[313398585,1707301832078,-250.0,0.00027098,2]
[313398586,1707301832087,-672.0,0.00027144,2]
[313398587,1707301832096,-27375.1011,0.00027552,2]
[313398588,1707301832106,-163.98550412,0.00027588,2]
[313398589,1707301832115,-4619.0,0.000276,2]
[313398590,1707301832124,-800.0,0.00027644,2]
[313398591,1707301832133,-400.0,0.00027644,2]
[313398592,1707301832142,-167.0,0.00027739,2]
[313398593,1707301832153,-164.48264391,0.000279,2]
[313398594,1707301832162,-153.0,0.00028,30]
[313398595,1707301832171,-637.02,0.00028174,2]
[313398596,1707301832180,-150.0,0.00028492,2]
[313398597,1707301832190,-151.75,0.00028492,2]
[313398598,1707301832199,-266.3621,0.00028498,2]
[313398599,1707301832209,-500.0,0.00028549,2]
[313398600,1707301832218,-200.0,0.00028549,2]
[313398601,1707301832227,-500.0,0.00028549,2]
[313398602,1707301832236,-500.0,0.00028549,2]
[313398603,1707301832246,-200.0,0.00028549,2]
[313398604,1707301832254,-500.0,0.0002855,2]
[313398605,1707301832263,-500.0,0.0002855,2]
[313398606,1707301832272,-500.0,0.0002855,2]
[313398607,1707301832283,-500.0,0.0002855,2]
[313398608,1707301832292,-500.0,0.0002855,2]
[313398609,1707301832301,-200.0,0.0002855,2]
[313398610,1707301832310,-200.0,0.0002855,2]
[313398611,1707301832319,-200.0,0.0002855,2]
[313398612,1707301832328,-201.960633,0.0002855,3]
[313398613,1707301832337,-170.60712626,0.00028588,2]
[313398614,1707301832347,-154.71592297,0.00028591,2]
[313398615,1707301832356,-1000.0,0.00028596,2]
[313398616,1707301832365,-9731.5257,0.00028598,2]
[313398617,1707301832374,-329.7576,0.00028598,2]
[313398618,1707301832394,-2842.9886,0.00028598,2]
[313398619,1707301832404,-1647.753,0.00028598,2]
[313398620,1707301832414,-852.37309677,0.000286,2]
[313398621,1707301832426,-1246.50098923,0.00028635,2]
[313398622,1707301832435,-162.74596975,0.00028667,2]
[313398623,1707301832446,-800.0,0.00028685,2]
[313398624,1707301832455,-243.93574829,0.00028696,2]
[313398625,1707301832465,-216.3929506,0.00028696,2]
[313398626,1707301832475,-298.82580935,0.00028696,2]
[313398627,1707301832485,-162.82790545,0.00028696,2]
[313398628,1707301832495,-155.98026097,0.00028696,2]
[313398629,1707301832506,-156.20937209,0.00028696,2]
[313398630,1707301832515,-290.51320653,0.00028696,2]
[313398631,1707301832525,-155.14653519,0.00028696,2]
[313398632,1707301832534,-246.95180122,0.00028696,2]
[313398633,1707301832544,-192.11474153,0.00028696,2]
[313398634,1707301832553,-155.43696914,0.00028696,2]
[313398635,1707301832563,-288.38620589,0.00028696,2]
[313398636,1707301832572,-159.8777777,0.00028696,2]
[313398637,1707301832582,-400.0,0.00028696,2]
[313398638,1707301832592,-155.79079654,0.00028696,2]
[313398639,1707301832601,-250.59187334,0.00028696,2]
[313398640,1707301832610,-155.50991364,0.00028696,2]
[313398641,1707301832620,-244.28393771,0.00028696,2]
[313398642,1707301832630,-972.27378553,0.00028696,2]
[313398643,1707301832639,-297.73000005,0.00028696,2]
[313398644,1707301832648,-226.81938831,0.00028696,2]
[313398645,1707301832658,-413.15022701,0.00028696,2]
[313398646,1707301832667,-1844.68218607,0.00028696,4]
[313398647,1707301832677,-198.25699854,0.00028696,2]
[313398648,1707301832686,-7163.99269994,0.00028696,2]
[313398649,1707301832696,-155.26978808,0.00028696,2]
[313398650,1707301832705,-155.36995231,0.00028696,2]
[313398651,1707301832714,-808.18881473,0.00028696,2]
[313398652,1707301832724,-203.13377714,0.00028696,2]
[313398653,1707301832733,-7241.5832,0.00028698,2]
[313398654,1707301832742,-82943.19253994,0.00028698,2]
[313398655,1707301832756,-100591.83946006,0.00028698,2]
[313398656,1707301832766,-331.6728,0.00028698,2]
[313398657,1707301832775,-900.0,0.00028698,2]
[313398658,1707301832784,-500.0,0.00028698,2]
[313398659,1707301832793,-1000.0,0.000287,2]
[313398660,1707301832802,-169.15754292,0.000287,2]
[313398661,1707301832811,-164.60010223,0.000287,2]
[313398662,1707301832820,-823.7753496,0.000287,2]
[313398663,1707301832829,-5000.0,0.000287,2]
[313398664,1707301832838,-163.98550412,0.000287,2]
[313398665,1707301832847,-1283.01876304,0.000287,2]
[313398666,1707301832857,-489.46953696,0.000287,2]
[313398667,1707301832865,-1068.6066285,0.000287,2]
[313398668,1707301832873,-823.77534958,0.00028707,2]
[313398669,1707301832882,-823.77534958,0.00028715,2]
[313398670,1707301832894,-823.77534958,0.00028722,2]
[313398671,1707301832903,-823.77534958,0.00028729,2]
[313398672,1707301832913,-1000.0,0.00028736,2]
[313398673,1707301832921,-1000.0,0.00028736,2]
[313398674,1707301832930,-1000.0,0.00028736,2]
[313398675,1707301832941,-1000.0,0.00028736,2]
[313398676,1707301832950,-1000.0,0.00028736,2]
[313398677,1707301832959,-185.354,0.00028736,2]
[313398678,1707301832968,-823.77534958,0.00028736,2]
[313398679,1707301832977,-1283.01876302,0.0002874,2]
[313398680,1707301832987,-489.46953696,0.0002874,2]
[313398681,1707301832996,-1068.60662849,0.0002874,2]
[313398682,1707301833006,-823.77534958,0.00028744,2]
[313398683,1707301833015,-823.77534958,0.00028751,2]
[313398684,1707301833025,-823.77534958,0.00028758,2]
[313398685,1707301833034,-823.77534958,0.00028765,2]
[313398686,1707301833044,-823.77534958,0.00028773,2]
[313398687,1707301833053,-17852.39790279,0.00028778,2]
[313398688,1707301833062,-823.77534958,0.0002878,2]
[313398689,1707301833076,-1283.01876302,0.0002878,2]
[313398690,1707301833085,-489.46953696,0.0002878,2]
[313398691,1707301833094,-1068.60662849,0.0002878,2]
[313398692,1707301833103,-803.32188729,0.00028798,2]
[313398693,1707301833113,-1158.20776916,0.00028798,2]
[313398694,1707301833122,-711.39171269,0.00028798,2]
[313398695,1707301833131,-318.77640834,0.00028798,2]
[313398696,1707301833140,-3160.98074311,0.00028798,2]
[313398697,1707301833151,-7605.93613663,0.00028798,2]
[313398698,1707301833165,-35445.79641004,0.00028798,2]
[313398699,1707301833175,-1013.26547405,0.00028798,2]
[313398700,1707301833184,-354.87715265,0.00028798,2]
[313398701,1707301833193,-227.85125278,0.00028799,2]
[313398702,1707301833202,-9559.13962804,0.00028799,2]
[313398703,1707301833211,-376.0,0.000288,5]
[313398704,1707301833220,-22178.89077212,0.000288,3]
[313398705,1707301833233,-834.26875927,0.000288,3]
[313398706,1707301833248,-1526.98427538,0.000288,3]
[313398707,1707301837753,-5466.70893154,0.00024683,2]
[313398708,1707301837763,-852.77274172,0.000288,3]
[313398709,1707301837787,-1000.00663,0.000288,3]
[313398710,1707301837798,-464.205,0.000288,3]
[313398711,1707301837815,-4245.84616659,0.000288,3]
[313398712,1707301837826,-1069.5,0.000288,3]
[313398713,1707301837849,-395.84587954,0.000288,3]
[313398714,1707301837861,-296.43501175,0.000288,3]
[313398715,1707301837905,-306.979227,0.000288,3]
[313398716,1707301837917,-2356.8835157,0.000288,3]
[313398719,1707301840194,-324.83345453,0.0002878,2]
[313398720,1707301841102,-675.16654547,0.0002878,2]
[313398721,1707301841113,-339.0,0.000288,5]
[313398722,1707301841122,-3298.43345451,0.000288,3]
[313398756,1707301842648,-1385.10489628,0.000288,3]
[313398765,1707301842756,-854310.91048277,0.000288,3]
[313398767,1707301842769,-85467.62810673,0.000288,3]
[313398769,1707301842781,-65732.1011077,0.000288,3]
[313398771,1707301842792,-30375.20624935,0.000288,3]
[313398773,1707301842804,-10573.82778234,0.000288,3]
[313398820,1707301845782,-4300.21688931,0.000287,2]
[313398821,1707301845946,-384.34893729,0.000287,2]
[313398829,1707302945106,-175.28914559,0.00024584,2]
[313398830,1707302945126,-4657.3744,0.00024585,2]
[313398831,1707302945147,-350.0,0.00025,3]
[313398832,1707302945169,-366.2,0.0002511,2]
[313398867,1707303037848,-175.28914559,0.00026999,2]
[313398868,1707303037858,-189.7853455,0.00027,3]
[313398875,1707303041004,-210.2146545,0.00027,3]
[313398876,1707303041014,-262.4,0.00027179,2]
[313398877,1707303041023,-210.0,0.00027188,2]
[313398878,1707303041032,-150.0,0.00027233,2]
[313398879,1707303041043,-250.0,0.00027248,2]
[313398880,1707303041052,-424.68,0.00027254,2]
[313398881,1707303041062,-167.93,0.00027302,2]
[313398882,1707303041071,-366.2,0.00027374,2]
[313398883,1707303041080,-151.75532321,0.000274,2]
[313398884,1707303041089,-150.0,0.00027473,2]
[313398885,1707303041098,-855.94,0.00027497,2]
[313398886,1707303041107,-9999.99,0.00027588,2]
[313398887,1707303041115,-1616.22,0.00027588,2]
[313398888,1707303041124,-1608.0,0.000276,2]
[313398889,1707303041133,-4157.0,0.000276,2]
[313398890,1707303041142,-151.75532318,0.00027617,2]
[313398891,1707303041152,-737.6,0.0002763,2]
[313398892,1707303041161,-242.95,0.00027667,2]
[313398893,1707303041170,-151.75532318,0.00027833,2]
[313398894,1707303041179,-151.75532318,0.0002805,2]
[313398895,1707303041188,-151.75532318,0.00028267,2]
[313398896,1707303041197,-206.7629,0.000283,2]
[313398898,1707303041327,-934.9299,0.000283,2]
[313398899,1707303041337,-1000.0,0.000283,2]
[313398900,1707303041347,-198639.878019,0.000284,30]
[313398901,1707303041357,-151.75532318,0.00028483,2]
[313398902,1707303041366,-150.0,0.00028519,2]
[313398903,1707303041375,-200.0,0.00028569,2]
[313398905,1707303041385,-800.0,0.00028569,2]
[313398906,1707303041394,-154.71592297,0.00028591,2]
[313398907,1707303041403,-6570.4673,0.00028699,2]
[313398908,1707303041413,-701.8698,0.00028699,2]
[313398909,1707303041425,-21533.5139,0.00028699,2]
[313398910,1707303041434,-1108.89,0.000287,2]
[313398911,1707303041443,-5000.0,0.000287,2]
[313398912,1707303041453,-902.62274662,0.000287,2]
[313398913,1707303041464,-252.38070885,0.000287,2]
[313398914,1707303041473,-151.75532318,0.000287,2]
[313398915,1707303041483,-902.62274662,0.00028749,2]
[313398916,1707303041492,-252.38070884,0.00028749,2]
[313398917,1707303041503,-5879.9363641,0.00028797,6]
[313398918,1707303041513,-530.42485167,0.00028797,2]
[313398919,1707303041522,-235.0075409,0.00028798,2]
[313398920,1707303041531,-514.98996877,0.00028798,2]
[313398921,1707303041541,-220.60657942,0.00028798,2]
[313398922,1707303041551,-1444.4099148,0.00028798,2]
[313398923,1707303041560,-159.99282396,0.00028798,2]
[313398924,1707303041569,-9086.98781974,0.00028798,2]
[313398925,1707303041578,-902.62274662,0.00028798,2]
[313398926,1707303041588,-252.38070884,0.00028798,2]
[313398927,1707303041597,-353.93850636,0.00028798,15]
[313398928,1707303041606,-508.40829493,0.00028799,2]
[313398929,1707303041615,-418.11959971,0.00028799,2]
[313398930,1707303041624,-257.99791963,0.00028799,2]
[313398931,1707303041634,-6500.18938571,0.00028799,4]
[313398932,1707303041643,-90077.30824633,0.00028799,2]
[313398933,1707303041652,-4657.31577873,0.00028799,2]
[313398934,1707303041661,-336.95912821,0.00028799,15]
[313398935,1707303041670,-313.57682683,0.00028799,2]
[313398936,1707303041680,-300.0,0.000288,5]
[313398937,1707303041689,-1884246.48017053,0.000288,3]
[313398938,1707303041698,-1041.5252668,0.000288,2]
[313398939,1707303041707,-1999.9999999,0.000288,2]
[313398940,1707303041716,-200.0,0.000288,2]
[313398941,1707303041725,-2000.0,0.000288,2]
[313398942,1707303041734,-200.0,0.000288,2]
[313398943,1707303041743,-2519.0068142,0.00028878,2]
[313398944,1707303041753,-57345.690551,0.00028878,2]
[313398945,1707303041762,-3691.4531762,0.00028878,2]
[313398946,1707303041771,-151.5005338,0.00028879,2]
[313398947,1707303041780,-1654.66467714,0.00028879,2]
[313398948,1707303041789,-5213533.98893315,0.0002888,2]
[313398956,1707303042834,-5984.67373492,0.0002888,2]
[313399011,1707303069555,2446.70084439,0.00023,2]
[313399013,1707303249602,1516.92,0.0002,2]
[313399055,1707304153111,-158.47052976,0.00022897,2]
[313399056,1707304153132,-1199.39766854,0.000229,2]
[313399057,1707304153152,-28499.31112376,0.00022997,2]
[313399058,1707304153174,-47880.61286341,0.00022997,2]
[313399059,1707304153194,-10071.77025481,0.00022998,2]
[313399060,1707304153213,-155.48453537,0.00022998,2]
[313399061,1707304153233,-155.55867866,0.00022998,2]
[313399062,1707304153397,-306.23581506,0.00022998,2]
[313399063,1707304153417,-913.61152926,0.00022998,2]
[313399064,1707304153437,-25289.22189391,0.00022998,2]
[313399065,1707304153457,-355.74113653,0.00022998,2]
[313399066,1707304153476,-801.53596523,0.00022998,2]
[313399067,1707304153496,-2909.52505049,0.00022998,2]
[313399068,1707304153515,-159.30807019,0.00022998,2]
[313399069,1707304153536,-329.15230136,0.00022998,2]
[313399070,1707304153555,-360.91855771,0.00022998,2]
[313399071,1707304153575,-213.49443609,0.00022998,2]
[313399072,1707304153594,-155.37702772,0.00022998,2]
[313399073,1707304153613,-500.0,0.00022998,2]
[313399074,1707304153632,-155.4860074,0.00022999,2]
[313399075,1707304153652,-323.04356442,0.00022999,2]
[313399076,1707304153670,-651.925033,0.00022999,2]
[313399077,1707304153692,-1329.96056125,0.00022999,2]
[313399078,1707304153716,-26750.24739607,0.00023,2]
[313399108,1707304237984,-16693.24876,0.00023,2]
[313399109,1707304238252,-501.48218521,0.00023,2]
[313399116,1707304240722,-639.6,0.00023,2]
[313399117,1707304240736,-1212.5,0.00023,2]
[313399118,1707304240762,-710.34500002,0.00023,2]
[313399144,1707304243070,-219.79689152,0.00022999,2]
[313399146,1707304243081,-2361.68067485,0.00023,2]
[313399158,1707304246197,-256.65727498,0.00023,2]
[313399163,1707304370153,4777.64053712,0.00022996,5]
[313399164,1707304480072,367.282388,0.00022532,2]
[313399165,1707304740139,-1225.47377789,0.00022629,2]
[313399166,1707304740161,-155.0,0.00022629,2]
[313399167,1707304740182,-311.43526537,0.0002263,2]
[313399168,1707304740203,-308.09095674,0.0002263,2]
[313399169,1707304741404,-273.44259629,0.00022628,2]
[313399170,1707304741424,-1726.55740371,0.00022628,2]
[313399171,1707304741979,-1616.59251309,0.00022628,2]
[313399172,1707304742000,-383.40748691,0.0002263,2]
[313399173,1707304742603,-1168.48212818,0.0002263,2]
[313399174,1707304742624,-417.19846673,0.00022768,2]
[313399175,1707304742644,-150.0,0.00022769,2]
[313399176,1707304742666,-264.31940509,0.0002277,2]
[313399177,1707304743375,-2000.0,0.0002277,2]
[313399178,1707304746229,-2000.0,0.0002277,2]
[313399179,1707304747165,-2000.0,0.0002277,2]
[313399180,1707304748044,-2000.0,0.0002277,2]
[313399181,1707304748954,-2000.0,0.0002277,2]
[313399182,1707304749881,-2000.0,0.0002277,2]
[313399183,1707304750800,-2000.0,0.0002277,2]
[313399184,1707304751719,-117.68059491,0.0002277,2]
[313399185,1707304854094,438.5439,0.00022531,2]
[313399186,1707304893435,2570.0839,0.00022798,14]
[313399187,1707305072896,150.0,0.00022,2]
[313399188,1707305074457,150.0,0.00022548,2]
[313399189,1707305192412,378.04,0.00021683,2]
[313399190,1707305228113,-219.41092564,0.00022791,2]
[313399191,1707305328940,157.2201505,0.00022696,2]
[313399192,1707305415134,195.96,0.00022983,10]
[313399217,1707305432090,-2631.72549076,0.0002279,2]
[313399218,1707305432100,-489.20933772,0.00022791,2]
[313399219,1707305432110,-150.0,0.00022796,2]
[313399220,1707305432120,-150.0,0.00022796,2]
[313399221,1707305432129,-14029.88985973,0.00022797,2]
[313399223,1707305432139,-11044.26152342,0.00022797,2]
[313399225,1707305432150,-4848.31524309,0.000228,2]
[313399227,1707305432160,-194.78956466,0.000229,2]
[313399228,1707305432169,-693.56131897,0.00022937,2]
[313399229,1707305432178,-251.77753448,0.00022966,2]
[313399230,1707305432187,-184.51243623,0.00022996,2]
[313399231,1707305432197,-10158.20310733,0.00022996,2]
[313399232,1707305432207,-294.13245507,0.00022996,2]
[313399233,1707305432216,-227.64125047,0.00022996,2]
[313399234,1707305432227,-19053.02700194,0.00022996,2]
[313399235,1707305432236,-1229.98823579,0.00022996,2]
[313399236,1707305432249,-3336.34917432,0.00022996,2]
[313399237,1707305432259,-156.03086596,0.00022996,2]
[313399238,1707305432268,-312.16227438,0.00022996,2]
[313399239,1707305432277,-497.03349371,0.00022996,2]
[313399240,1707305432287,-388.71721001,0.00022996,2]
[313399241,1707305432297,-535.3758051,0.00022996,2]
[313399242,1707305432307,-8783.95194454,0.00022997,2]
[313399243,1707305432316,-380.23553401,0.00022998,2]
[313399244,1707305432326,-155.5341225,0.00022998,2]
[313399245,1707305432335,-702.81617028,0.00022998,2]
[313399246,1707305432346,-277.28847465,0.00022998,2]
[313399247,1707305432355,-155.0,0.00022998,2]
[313399248,1707305432364,-156.77297195,0.00022998,2]
[313399249,1707305432374,-199.09531382,0.00022998,2]
[313399250,1707305432383,-207.62393511,0.00022998,2]
[313399251,1707305432404,-517.9614323,0.00022998,2]
[313399252,1707305432421,-328.46718026,0.00022998,2]
[313399253,1707305432430,-413.91014249,0.00022998,2]
[313399254,1707305432442,-3155.48337617,0.00022998,2]
[313399255,1707305432451,-168.63608906,0.00022998,2]
[313399257,1707305432463,-174.12704445,0.00022998,2]
[313399260,1707305432472,-207.10551362,0.00022998,2]
[313399263,1707305432482,-177.489247,0.00022998,2]
[313399266,1707305432491,-285.21668893,0.00022998,2]
[313399268,1707305432501,-164.51094124,0.00022998,2]
[313399271,1707305432510,-292.42529483,0.00022998,2]
[313399274,1707305432519,-431.03154141,0.00022998,2]
[313399279,1707305432554,-68.96845859,0.00022998,2]
[313399281,1707305432563,-347.46399833,0.00022998,2]
[313399283,1707305432572,-215.68669268,0.00022998,2]
[313399285,1707305432581,-16.60748833,0.00022998,2]
[313399287,1707305432593,-138.81559533,0.00022998,2]
[313399288,1707305432606,-567.44957966,0.00022998,2]
[313399289,1707305432615,-1139.78306733,0.00022998,2]
[313399290,1707305432624,-635.53023928,0.00022998,2]
[313399291,1707305432634,-497.3082028,0.00022998,2]
[313399292,1707305432643,-247.34763938,0.00022998,2]
[313399293,1707305432653,-316.26918918,0.00022998,2]
[313399294,1707305432662,-1078.15445046,0.00022998,2]
[313399295,1707305432671,-204.53410873,0.00022998,2]
[313399296,1707305432680,-368.85693925,0.00022998,2]
[313399297,1707305432942,-400.6985065,0.00022998,2]
[313399298,1707305432952,-200.12650566,0.00022998,2]
[313399299,1707305432965,-255.80384809,0.00022998,2]
[313399300,1707305432975,-1694.56363089,0.00022998,2]
[313399306,1707305438199,-1456.98267552,0.00022998,2]
[313399307,1707305438208,-2499.39003216,0.00022998,2]
[313399308,1707305438263,-297.24781902,0.00022998,2]
[313399309,1707305438276,-852.04,0.00022998,2]
[313399310,1707305438375,-1843.40143148,0.00022998,2]
[313399311,1707305438387,-4130.91351558,0.00022998,2]
[313399312,1707305438444,-8597.69471066,0.00022998,2]
[313399313,1707305438694,-353.24821662,0.00022998,2]
[313399319,1707305440728,-80.50542223,0.00022998,2]
[313399320,1707305440738,-5038.93139283,0.00022998,2]
[313399321,1707305440748,-155.93849746,0.00022998,2]
[313399322,1707305440757,-477.88892515,0.00022998,2]
[313399323,1707305440767,-270.6074957,0.00022998,2]
[313399324,1707305440777,-265.24889509,0.00022998,2]
[313399325,1707305440786,-156.41238543,0.00022998,2]
[313399326,1707305440796,-349.06708826,0.00022998,2]
[313399327,1707305440806,-323.66584658,0.00022998,2]
[313399328,1707305440816,-157.96752868,0.00022998,2]
[313399329,1707305440825,-298.28238795,0.00022998,2]
[313399330,1707305440835,-273.81999298,0.00022998,2]
[313399331,1707305440844,-4646.38858611,0.00022998,2]
[313399332,1707305440854,-214.16278354,0.00022998,2]
[313399333,1707305440863,-249.66615555,0.00022998,2]
[313399334,1707305440872,-408.41431133,0.00022998,2]
[313399335,1707305440882,-1266.44692539,0.00022999,2]
[313399336,1707305440891,-155.0,0.00022999,2]
[313399337,1707305440900,-321.77821596,0.00022999,2]
[313399338,1707305440910,-769.45446522,0.00022999,2]
[313399339,1707305440919,-245.51995102,0.00022999,2]
[313399340,1707305440929,-169.55306514,0.00022999,2]
[313399341,1707305440939,-200.81640748,0.00022999,2]
[313399342,1707305440949,-157.77951354,0.00022999,2]
[313399343,1707305440958,-155.79514091,0.00022999,2]
[313399344,1707305440968,-355.706738,0.00022999,2]
[313399345,1707305440978,-388.22292933,0.00022999,2]
[313399346,1707305440988,-2035.54889916,0.00022999,2]
[313399347,1707305440998,-584.02539981,0.00022999,2]
[313399348,1707305441007,-6633.5564935,0.00022999,2]
[313399349,1707305441017,-200.44427555,0.00022999,2]